bitfinex/quotes_BTCUSD_20251226
["timestamp","ask_amount","ask_price","bid_price","bid_amount"]
[1766777224724,0.01183797,87473.0,87456.0,0.05249623]
[1766777224921,0.01183797,87473.0,87456.0,0.04106191]
[1766777225145,0.01183797,87473.0,87458.0,0.01143405]
[1766777225843,0.01183797,87473.0,87457.0,0.01143419]
[1766777226148,0.01183797,87473.0,87458.0,0.02291405]
[1766777226347,0.01183797,87473.0,87458.0,0.01148]
[1766777226503,0.01183797,87473.0,87458.0,0.02291405]
[1766777227201,0.01148,87478.0,87473.0,0.00019103]
[1766777227404,0.01148,87478.0,87473.0,0.00029858]
[1766777227608,0.01148,87478.0,87473.0,0.00010755]
[1766777228958,0.0002,87482.0,87473.0,5.5e-07]
[1766777229462,0.05411949,87481.0,87465.0,0.00848055]
[1766777229675,0.05411949,87481.0,87465.0,0.00858818]
[1766777229876,0.05411949,87481.0,87466.0,0.01143301]
[1766777230228,0.05411949,87481.0,87465.0,0.00858818]
[1766777231046,0.05411949,87481.0,87466.0,0.01143301]
[1766777231240,0.05267331,87480.0,87466.0,0.01143301]
[1766777231483,0.05267331,87480.0,87467.0,0.01143288]
[1766777231778,0.05267331,87480.0,87468.0,0.01143275]
[1766777232015,0.05267331,87480.0,87467.0,0.01143288]
[1766777232016,0.05267331,87480.0,87465.0,0.00858818]
[1766777232223,0.000251,87468.0,87465.0,0.00858818]
[1766777232408,0.01163092,87482.0,87465.0,0.00858818]
[1766777232699,0.01236973,87481.0,87465.0,0.00858818]
[1766777234823,0.01163092,87482.0,87465.0,0.00858818]
[1766777235413,0.0002,87482.0,87465.0,0.00858818]
[1766777235611,0.01163092,87482.0,87465.0,0.00858818]
[1766777236815,0.01143105,87481.0,87465.0,0.00858818]
[1766777237743,0.0002,87482.0,87465.0,0.00858818]
[1766777237950,0.01488472,87481.0,87465.0,0.00858818]
[1766777240563,0.01488472,87481.0,87465.0,0.02002132]
[1766777240880,0.01488472,87481.0,87465.0,0.00858818]
[1766777241378,0.01488472,87481.0,87465.0,0.02002132]
[1766777245020,0.01488472,87481.0,87466.0,0.01143301]
[1766777245219,0.01488472,87481.0,87467.0,0.01143288]
[1766777245445,0.01488472,87481.0,87469.0,0.01143262]
[1766777245627,0.0002,87482.0,87468.0,0.01143275]
[1766777246006,0.0002,87482.0,87466.0,0.01143301]
[1766777246203,0.0002,87482.0,87465.0,0.02002132]
[1766777246526,0.0002,87482.0,87465.0,0.00858818]
[1766777246670,0.0002,87482.0,87466.0,0.01143301]
[1766777246870,0.01031241,87481.0,87465.0,0.00858818]
[1766777247732,0.01031241,87481.0,87465.0,0.02002132]
[1766777248032,0.01031241,87481.0,87466.0,0.01143301]
[1766777248857,0.01031241,87481.0,87467.0,0.01143288]
[1766777249236,0.01031241,87481.0,87465.0,0.07718666]
[1766777249237,0.01031241,87481.0,87465.0,0.02002132]
[1766777249400,0.0002,87482.0,87466.0,0.01143301]
[1766777249594,0.0002,87482.0,87467.0,0.01143288]
[1766777249815,0.0002,87482.0,87469.0,0.01143262]
[1766777249999,0.0002,87482.0,87467.0,0.01143288]
[1766777250194,0.0002,87482.0,87466.0,0.01143301]
[1766777250400,0.01622735,87482.0,87467.0,0.01143288]
[1766777250994,0.01622735,87482.0,87466.0,0.01143301]
[1766777251171,0.01622735,87482.0,87467.0,0.01143288]
[1766777251346,0.01622735,87482.0,87465.0,0.07718658]
[1766777251347,0.01622735,87482.0,87465.0,0.02002132]
[1766777251670,0.01622735,87482.0,87468.0,0.01148]
[1766777251849,0.01622735,87482.0,87468.0,0.01157005]
[1766777252573,0.01622735,87482.0,87468.0,0.0230028]
[1766777252782,0.00071095,87468.0,87467.0,0.01148]
[1766777252916,0.00071095,87468.0,87467.0,0.01153314]
[1766777253115,0.44950325,87480.0,87467.0,0.01153314]
[1766777253531,0.46093443,87480.0,87467.0,0.01153314]
[1766777253828,0.44950325,87480.0,87467.0,0.01153314]
[1766777254028,0.06097838,87479.0,87467.0,0.01153314]
[1766777257103,0.07240969,87479.0,87467.0,0.01153314]
[1766777257271,0.01143157,87477.0,87467.0,0.01153314]
[1766777257477,0.000711,87467.0,87462.0,0.01148]
[1766777257645,0.0114317,87476.0,87462.0,0.01183797]
[1766777257848,0.07736095,87475.0,87462.0,0.01183797]
[1766777258359,0.01143196,87474.0,87462.0,0.01183797]
[1766777258572,0.07736095,87475.0,87462.0,0.01183797]
[1766777259353,0.06592912,87475.0,87462.0,0.01183797]
[1766777259572,0.07736095,87475.0,87462.0,0.01183797]
[1766777259775,0.02380343,87474.0,87462.0,0.01183797]
[1766777262289,0.01143209,87473.0,87462.0,0.00035797]
[1766777262488,0.08096331,87474.0,87462.0,0.00035797]
[1766777262489,0.02380343,87474.0,87462.0,0.01167697]
[1766777263303,0.02380343,87474.0,87462.0,0.00019697]
[1766777263547,0.02380343,87474.0,87462.0,0.01167697]
[1766777264308,0.06097838,87473.0,87462.0,0.01167697]
[1766777265338,0.06097838,87473.0,87462.0,0.00019697]
[1766777265479,0.06097838,87473.0,87462.0,0.01167697]
[1766777265911,0.06097838,87473.0,87462.0,0.01070441]
[1766777278169,0.06089357,87473.0,87462.0,0.01070441]
[1766777279396,0.02447379,87472.0,87462.0,0.01070441]
[1766777279561,0.0114317,87476.0,87462.0,0.01070441]
[1766777279765,0.01143183,87475.0,87462.0,0.01070441]
[1766777280616,0.01143183,87475.0,87456.0,0.01143432]
[1766777280762,0.01179002,87475.0,87457.0,0.01148]
[1766777280966,0.08270969,87474.0,87457.0,0.01148]
[1766777281263,0.08270969,87474.0,87456.0,0.01143432]
[1766777281466,0.08270969,87474.0,87459.0,0.04111452]
[1766777283381,0.09414165,87474.0,87459.0,0.05259452]
[1766777283590,0.08270969,87474.0,87459.0,0.05259452]
[1766777283776,0.01179002,87475.0,87459.0,0.05259452]
[1766777283976,0.44952819,87470.0,87459.0,0.05259452]
[1766777287528,0.44952819,87470.0,87460.0,0.04111452]
[1766777291932,0.00035819,87475.0,87460.0,0.04111452]
[1766777292143,0.44952819,87470.0,87460.0,0.04111452]
[1766777292526,0.44952819,87470.0,87459.0,0.05259452]
[1766777295641,0.44952819,87470.0,87459.0,0.06402844]
[1766777295810,0.44952819,87470.0,87459.0,0.05259452]
[1766777296234,0.44952819,87470.0,87459.0,0.06402844]
[1766777297340,0.44952819,87470.0,87459.0,0.05259452]
[1766777297965,0.49795118,87470.0,87459.0,0.05259452]
[1766777302242,0.00035819,87475.0,87464.0,0.01143327]
[1766777302459,0.00035819,87475.0,87466.0,0.01143301]
[1766777302932,1.9e-07,87475.0,87468.0,0.01143275]
[1766777303346,1.9e-07,87475.0,87467.0,0.01143288]
[1766777303546,1.9e-07,87475.0,87468.0,0.01143275]
[1766777303663,1.9e-07,87475.0,87466.0,0.01148]
[1766777303860,1.9e-07,87475.0,87468.0,0.01143275]
[1766777304820,1.9e-07,87475.0,87469.0,0.01143262]
[1766777304967,1.9e-07,87475.0,87468.0,0.01143275]
[1766777305320,1.9e-07,87475.0,87472.0,0.05716114]
[1766777305681,0.04125728,87502.0,87472.0,0.05716114]
[1766777305682,0.0458,87499.0,87480.0,0.05715553]
[1766777305848,0.0458,87499.0,87481.0,0.01148]
[1766777305849,5.402e-05,87482.0,87481.0,0.01148]
[1766777309285,5.402e-05,87482.0,87472.0,0.46096041]
[1766777309286,0.000549,87481.0,87477.0,0.01148]
[1766777309674,5.402e-05,87482.0,87477.0,0.01148]
[1766777310496,5.402e-05,87482.0,87462.0,0.04111452]
[1766777310497,0.000549,87477.0,87462.0,0.04111452]
[1766777310718,0.00691874,87477.0,87465.0,0.01148]
[1766777313175,0.0114317,87476.0,87465.0,0.01148]
[1766777313401,0.000549,87465.0,87460.0,0.01148]
[1766777313793,0.44952819,87470.0,87460.0,0.01148]
[1766777320010,0.44952819,87470.0,87460.0,0.010931]
[1766777324413,0.50546155,87470.0,87460.0,0.010931]
[1766777329694,0.50546155,87470.0,87460.0,0.00937487]
[1766777332669,0.05593336,87470.0,87460.0,0.00937487]
[1766777333013,0.44952819,87470.0,87460.0,0.00937487]
[1766777336749,0.01143196,87474.0,87460.0,0.00937487]
[1766777336952,0.44952819,87470.0,87460.0,0.00937487]
[1766777338109,0.44967899,87470.0,87460.0,0.00937487]
[1766777339565,0.44952819,87470.0,87460.0,0.00922407]
[1766777339769,0.51117761,87470.0,87460.0,0.00922407]
[1766777340872,0.51117761,87470.0,87456.0,0.04111452]
[1766777341244,0.51117761,87470.0,87457.0,0.04111452]
[1766777341886,0.44952819,87470.0,87457.0,0.04111452]
[1766777343263,0.44952819,87470.0,87458.0,0.04111452]
[1766777343956,0.44954211,87470.0,87458.0,0.04111452]
[1766777345242,0.44954211,87470.0,87459.0,0.04111452]
[1766777364576,0.44954211,87470.0,87461.0,0.04111452]
[1766777364944,0.00691874,87477.0,87461.0,0.04111452]
[1766777365143,0.06166006,87476.0,87461.0,0.04111452]
[1766777365396,0.06166006,87476.0,87460.0,0.09828306]
[1766777365694,0.07309176,87476.0,87460.0,0.04111452]
[1766777366103,0.06166006,87476.0,87460.0,0.04111452]
[1766777367495,0.01143183,87475.0,87460.0,0.04111452]
[1766777367698,0.0746806,87474.0,87459.0,0.04111452]
[1766777368497,0.06324864,87474.0,87459.0,0.04111452]
[1766777368881,0.0746806,87474.0,87459.0,0.04111452]
[1766777370438,0.44954211,87470.0,87459.0,0.04111452]
[1766777370662,0.46483067,87470.0,87459.0,0.04111452]
[1766777371019,0.01528856,87470.0,87459.0,0.04111452]
[1766777375479,0.06324864,87474.0,87459.0,0.04111452]
[1766777376538,0.06324864,87474.0,87459.0,0.04088478]
[1766777380414,0.0746806,87474.0,87457.0,0.01148]
[1766777380617,0.06324864,87474.0,87457.0,0.01148]
[1766777381655,0.06324864,87474.0,87457.0,0.02291419]
[1766777381834,0.06728797,87473.0,87457.0,0.02291419]
[1766777382749,0.06728797,87473.0,87457.0,0.01148]
[1766777385773,0.07872006,87473.0,87457.0,0.01148]
[1766777386602,0.06728797,87473.0,87457.0,0.01148]
[1766777387298,0.07872006,87473.0,87457.0,0.01148]
[1766777387465,0.02502447,87472.0,87457.0,0.01148]
[1766777388990,0.02502447,87472.0,87450.0,0.06861009]
[1766777388991,0.00055,87457.0,87446.0,0.06170157]
[1766777389200,0.01148,87461.0,87445.0,0.07313732]
[1766777389370,0.44954211,87460.0,87449.0,0.01143523]
[1766777389575,0.01148,87461.0,87448.0,0.01143536]
[1766777391072,0.01148,87461.0,87447.0,0.01143549]
[1766777391642,0.01148,87461.0,87445.0,0.01143575]
[1766777391776,0.44954211,87460.0,87445.0,0.01143575]
[1766777392173,0.50708205,87460.0,87445.0,0.01143575]
[1766777392630,0.50708205,87460.0,87444.0,0.01143589]
[1766777392958,0.50708205,87460.0,87446.0,0.01143562]
[1766777393154,0.50708205,87460.0,87445.0,0.06861413]
[1766777393379,0.50708205,87460.0,87445.0,0.01143575]
[1766777393601,0.01536935,87459.0,87445.0,0.01143575]
[1766777394003,0.01536935,87459.0,87446.0,0.01143562]
[1766777394819,0.01536935,87459.0,87445.0,0.01143575]
[1766777395194,0.01536935,87459.0,87446.0,0.01143562]
[1766777395399,0.01536935,87459.0,87445.0,0.01143575]
[1766777395630,0.01536935,87459.0,87446.0,0.01143562]
[1766777395995,0.01536935,87459.0,87445.0,0.01143575]
[1766777396418,0.01536935,87459.0,87446.0,0.01143562]
[1766777396783,0.01536935,87459.0,87445.0,0.01143575]
[1766777397285,0.01536935,87459.0,87446.0,0.01143562]
[1766777400590,0.01536935,87459.0,87441.0,0.1417938]
[1766777400800,0.000549,87446.0,87441.0,0.13035752]
[1766777400998,0.05339314,87458.0,87441.0,0.13035752]
[1766777401407,0.01536935,87459.0,87441.0,0.1417938]
[1766777401558,0.01536935,87459.0,87442.0,0.01143615]
[1766777401786,0.01536935,87459.0,87441.0,0.19897474]
[1766777401787,0.01536935,87459.0,87441.0,0.1417938]
[1766777401947,0.01541435,87459.0,87441.0,0.1417938]
[1766777402664,0.01541435,87459.0,87442.0,0.01143615]
[1766777402883,0.04993031,87458.0,87442.0,0.01143615]
[1766777403224,0.04993031,87458.0,87443.0,0.01143602]
[1766777403940,0.04993031,87458.0,87441.0,0.1417938]
[1766777404141,0.04993031,87458.0,87443.0,0.01143602]
[1766777404366,0.01541435,87459.0,87441.0,0.13035752]
[1766777404367,4.5e-05,87459.0,87441.0,0.13035752]
[1766777404582,4.5e-05,87459.0,87455.0,0.11887752]
[1766777404786,4.5e-05,87459.0,87457.0,0.05717049]
[1766777405074,0.03435046,87478.0,87472.0,0.01143222]
[1766777405276,4.504e-05,87478.0,87469.0,0.01143262]
[1766777405507,4.504e-05,87478.0,87465.0,0.01148]
[1766777407155,0.44947056,87475.0,87458.0,0.01143405]
[1766777407368,0.07129391,87478.0,87456.0,0.01148]
[1766777407369,0.000549,87465.0,87456.0,0.01148]
[1766777407588,0.05986247,87478.0,87452.0,0.01148]
[1766777407589,0.44947056,87466.0,87452.0,0.01148]
[1766777407799,0.44947056,87466.0,87447.0,0.01148]
[1766777407800,0.44947056,87462.0,87448.0,0.04099909]
[1766777408006,0.44947056,87462.0,87447.0,0.01148]
[1766777409057,0.46090409,87462.0,87447.0,0.01148]
[1766777409495,0.44947056,87462.0,87447.0,0.01148]
[1766777409676,0.06864545,87466.0,87449.0,0.01143523]
[1766777409677,0.44947056,87460.0,87449.0,0.01143523]
[1766777409858,0.44947056,87460.0,87451.0,0.01143497]
[1766777410250,0.01148,87465.0,87453.0,0.01143471]
[1766777410447,0.44947056,87461.0,87454.0,0.01143458]
[1766777410643,0.01148,87465.0,87453.0,0.01143471]
[1766777410847,0.01148,87466.0,87455.0,0.01143445]
[1766777411463,0.01148,87466.0,87454.0,0.01143458]
[1766777411667,0.01148,87466.0,87455.0,0.01143445]
[1766777412247,0.01148,87466.0,87453.0,0.01143471]
[1766777412693,0.51148,87466.0,87452.0,0.01143484]
[1766777413118,0.51148,87466.0,87449.0,0.06861088]
[1766777413264,0.51148,87466.0,87450.0,0.0114351]
[1766777413689,0.44947056,87460.0,87451.0,0.01143497]
[1766777414755,0.44947056,87460.0,87453.0,0.01143471]
[1766777415187,0.44947056,87463.0,87453.0,0.01143471]
[1766777415612,0.51148,87466.0,87455.0,0.01143445]
[1766777415817,0.51148,87466.0,87454.0,0.01143458]
[1766777416021,0.51148,87466.0,87452.0,0.06860869]
[1766777416842,0.51148,87466.0,87453.0,0.01143471]
[1766777417417,0.51148,87466.0,87454.0,0.01143458]
[1766777419346,0.51148,87466.0,87455.0,0.01143445]
[1766777420774,0.51148,87466.0,87452.0,0.01143484]
[1766777420991,0.51148,87466.0,87453.0,0.01143471]
[1766777424384,0.51148,87466.0,87448.0,0.22870587]
[1766777424585,0.51148,87466.0,87453.0,0.01143471]
[1766777425191,0.51148,87466.0,87450.0,0.0114351]
[1766777425373,0.51148,87466.0,87451.0,0.05717487]
[1766777425777,0.51148,87466.0,87452.0,0.01143484]
[1766777426223,0.51148,87466.0,87451.0,0.06860984]
[1766777427494,0.51148,87466.0,87452.0,0.01143484]
[1766777428095,0.51148,87466.0,87453.0,0.01143471]
[1766777429510,0.51148,87466.0,87452.0,0.01143484]
[1766777429862,0.51148,87466.0,87453.0,0.01143471]
[1766777430163,0.51148,87466.0,87452.0,0.01143484]
[1766777430908,0.51148,87466.0,87453.0,0.01143471]
[1766777431853,0.51148,87466.0,87451.0,0.06860984]
[1766777432032,0.51148,87466.0,87452.0,0.01143484]
[1766777432238,0.51148,87466.0,87453.0,0.01143471]
[1766777433617,0.51148,87466.0,87450.0,0.0114351]
[1766777433766,0.51148,87466.0,87451.0,0.01143497]
[1766777437844,0.51148,87466.0,87452.0,0.01143484]
[1766777438118,0.51148,87466.0,87453.0,0.01143471]
[1766777438774,0.51148,87466.0,87452.0,0.01143484]
[1766777439747,0.44947056,87462.0,87450.0,0.04099909]
[1766777439949,0.44947056,87460.0,87447.0,0.05247909]
[1766777440484,0.44947056,87460.0,87446.0,0.04099909]
[1766777440688,0.44947056,87460.0,87447.0,0.01148]
[1766777442591,0.01143471,87453.0,87445.0,0.04099909]
[1766777442796,0.01143458,87454.0,87441.0,0.05247909]
[1766777443002,0.44947056,87457.0,87441.0,0.01148]
[1766777443003,0.44947056,87451.0,87441.0,0.01148]
[1766777443135,0.44947056,87451.0,87439.0,0.05247909]
[1766777443339,0.05409447,87451.0,87439.0,0.01148]
[1766777443555,0.44947056,87450.0,87439.0,0.02291654]
[1766777444292,0.44947056,87450.0,87439.0,0.02327473]
[1766777444793,0.44947056,87450.0,87439.0,0.01183819]
[1766777445173,0.44947056,87450.0,87439.0,0.00035819]
[1766777445375,0.44947056,87450.0,87439.0,0.01183819]
[1766777445782,0.04494706,87449.0,87439.0,0.01183819]
[1766777461640,0.04494706,87449.0,87440.0,0.01143641]
[1766777461770,0.01143366,87461.0,87449.0,0.000549]
[1766777461973,0.46095056,87460.0,87449.0,0.000549]
[1766777462377,0.46095056,87460.0,87444.0,0.0697587]
[1766777462577,0.46095056,87460.0,87446.0,0.01143562]
[1766777462854,0.5,87466.0,87446.0,0.01143562]
[1766777462855,0.5,87466.0,87460.0,0.01143379]
[1766777463047,0.5,87466.0,87463.0,0.0114334]
[1766777463183,0.5,87466.0,87461.0,0.01143366]
[1766777463383,0.5,87466.0,87460.0,0.01198279]
[1766777463687,0.5,87466.0,87460.0,0.01143379]
[1766777463890,0.5,87466.0,87459.0,0.06860306]
[1766777463891,0.5,87466.0,87459.0,0.01143392]
[1766777464292,0.5,87466.0,87460.0,0.01143379]
[1766777464503,0.5,87466.0,87459.0,0.01143392]
[1766777465582,0.5,87466.0,87456.0,0.13035752]
[1766777465583,0.5,87466.0,87457.0,0.01143419]
[1766777465946,0.5,87466.0,87456.0,0.14179184]
[1766777465947,0.5,87466.0,87456.0,0.13035752]
[1766777466136,0.5,87466.0,87456.0,0.14179184]
[1766777467571,0.5,87466.0,87456.0,0.11887752]
[1766777467767,0.09609506,87465.0,87456.0,0.01093]
[1766777467912,0.5,87466.0,87456.0,0.01093]
[1766777468483,0.5,87466.0,87453.0,0.01148]
[1766777468807,0.51143301,87466.0,87453.0,0.01148]
[1766777469019,0.5,87466.0,87453.0,0.01148]
[1766777469221,0.5,87466.0,87453.0,0.02291471]
[1766777469552,0.5,87466.0,87453.0,0.01148]
[1766777473931,0.5,87466.0,87454.0,0.01143458]
[1766777474063,0.5,87466.0,87455.0,0.01143445]
[1766777474264,0.5,87466.0,87454.0,0.01143458]
[1766777474524,0.09610762,87465.0,87453.0,0.08008796]
[1766777474737,0.09610762,87465.0,87453.0,0.02291471]
[1766777475420,0.09610762,87465.0,87453.0,0.01148]
[1766777475624,0.09610762,87465.0,87453.0,0.02291471]
[1766777476026,0.09610762,87465.0,87454.0,0.01143458]
[1766777476392,0.09610762,87465.0,87453.0,0.02291471]
[1766777477015,0.09610762,87465.0,87453.0,0.01148]
[1766777477694,0.04408964,87464.0,87453.0,0.02291471]
[1766777477895,0.04408964,87464.0,87453.0,0.01148]
[1766777478314,0.5,87466.0,87458.0,0.05717018]
[1766777478535,0.5,87466.0,87464.0,0.001099]
[1766777478964,0.5,87466.0,87461.0,0.01143366]
[1766777479361,0.5,87466.0,87460.0,0.01143379]
[1766777479874,0.499451,87466.0,87461.0,0.01143366]
[1766777480284,0.499451,87466.0,87463.0,0.0114334]
[1766777480285,0.47561631,87466.0,87463.0,0.0114334]
[1766777480619,0.47561631,87466.0,87462.0,0.01148]
[1766777480825,0.47561631,87466.0,87462.0,0.02291353]
[1766777481018,0.47561631,87466.0,87462.0,0.01148]
[1766777481223,0.47561631,87466.0,87462.0,0.02291353]
[1766777481967,0.47561631,87466.0,87462.0,0.01148]
[1766777483797,0.47561631,87466.0,87462.0,0.08008082]
[1766777483998,0.47561631,87466.0,87463.0,0.0114334]
[1766777485734,0.47561631,87466.0,87462.0,0.02291353]
[1766777486263,0.47561631,87466.0,87463.0,0.0114334]
[1766777486473,0.47561631,87466.0,87462.0,0.02001553]
[1766777486607,0.47561631,87466.0,87463.0,0.0114334]
[1766777487144,0.47561631,87466.0,87462.0,0.02001553]
[1766777487307,0.47561631,87466.0,87462.0,0.008582]
[1766777487505,0.47561631,87466.0,87463.0,0.01148]
[1766777488952,0.47561631,87466.0,87463.0,0.0229134]
[1766777489927,0.47561631,87466.0,87463.0,0.01148]
[1766777490332,0.47561631,87466.0,87463.0,0.0229134]
[1766777490578,0.47561631,87466.0,87463.0,0.01148]
[1766777491773,0.47561631,87466.0,87463.0,0.0229134]
[1766777493761,0.47561631,87466.0,87463.0,0.01148]
[1766777497844,0.47561631,87466.0,87463.0,0.0229134]
[1766777498826,0.47561631,87466.0,87464.0,0.0571661]
[1766777499028,0.01148,87477.0,87467.0,0.01143288]
[1766777499210,0.01148,87477.0,87464.0,0.01143327]
[1766777499603,0.01148,87477.0,87465.0,0.01143314]
[1766777500207,0.01148,87477.0,87464.0,0.01143327]
[1766777500608,0.01148,87477.0,87465.0,0.01143314]
[1766777501028,0.01148,87477.0,87464.0,0.01143327]
[1766777501438,0.01148,87477.0,87465.0,0.01143314]
[1766777501632,0.01148,87477.0,87464.0,0.01143327]
[1766777502409,0.01148,87477.0,87465.0,0.01143314]
[1766777502614,0.01148,87477.0,87464.0,0.01143327]
[1766777503048,0.01148,87477.0,87465.0,0.01143314]
[1766777503918,0.01148,87477.0,87464.0,0.01143327]
[1766777504129,0.01148,87477.0,87465.0,0.01143314]
[1766777504616,0.01148,87477.0,87463.0,0.0229134]
[1766777504830,0.01148,87477.0,87463.0,0.01148]
[1766777505215,0.01148,87477.0,87463.0,0.0114334]
[1766777505516,0.01148,87477.0,87462.0,0.02291353]
[1766777506466,0.01148,87477.0,87463.0,0.0114334]
[1766777507505,0.06559007,87477.0,87462.0,0.02291353]
[1766777508529,0.06559007,87477.0,87462.0,0.01148]
[1766777508737,0.01148,87477.0,87462.0,0.01148]
[1766777508964,0.01148,87477.0,87464.0,0.03070388]
[1766777509267,0.01148,87477.0,87465.0,0.03070388]
[1766777510267,0.01148,87477.0,87466.0,0.03070388]
[1766777517415,0.01148,87477.0,87462.0,0.02291353]
[1766777517832,0.01148,87477.0,87462.0,0.01148]
[1766777518341,0.01148,87477.0,87462.0,0.02291353]
[1766777518697,0.01148,87477.0,87462.0,0.01148]
[1766777519139,0.01148,87477.0,87462.0,0.02291353]
[1766777519441,0.01148,87477.0,87462.0,0.01148]
[1766777520033,0.01148,87477.0,87461.0,0.05240713]
[1766777520263,0.01148,87477.0,87461.0,0.05276532]
[1766777520469,0.01148,87477.0,87462.0,0.01148]
[1766777521535,0.01148,87477.0,87462.0,0.02291353]
[1766777522455,0.01148,87477.0,87470.0,0.11887752]
[1766777525793,0.01148,87477.0,87470.0,0.09987752]
[1766777526525,0.01148,87477.0,87462.0,0.01148]
[1766777527889,0.01148,87477.0,87462.0,0.02291353]
[1766777528091,0.01148,87477.0,87462.0,0.01148]
[1766777529254,0.01148,87477.0,87462.0,0.02291353]
[1766777529461,0.05980994,87476.0,87462.0,0.02291353]
[1766777531515,0.05980994,87476.0,87463.0,0.0114334]
[1766777531831,0.01148,87477.0,87476.0,0.000549]
[1766777532321,9e-06,87482.0,87477.0,0.00055]
[1766777532849,9e-06,87482.0,87470.0,0.11887752]
[1766777533114,9e-06,87482.0,87470.0,0.09787752]
[1766777534718,0.44943891,87480.0,87470.0,0.09787752]
[1766777536090,0.04723583,87479.0,87470.0,0.09787752]
[1766777536542,0.44943891,87480.0,87470.0,0.09787752]
[1766777537607,9e-06,87482.0,87470.0,0.09787752]
[1766777537809,0.44943891,87480.0,87470.0,0.09787752]
[1766777543617,9e-06,87482.0,87470.0,0.09787752]
[1766777543818,0.44943891,87480.0,87470.0,0.09787752]
[1766777544017,0.4955317,87480.0,87470.0,0.09787752]
[1766777544643,0.44943891,87480.0,87470.0,0.09787752]
[1766777551031,0.44943891,87480.0,87461.0,0.05752602]
[1766777551032,0.50659526,87480.0,87467.0,0.03076207]
[1766777551217,0.50659526,87480.0,87461.0,0.04133166]
[1766777551218,0.46087048,87477.0,87465.0,0.03076207]
[1766777551421,0.44943891,87475.0,87464.0,0.03076207]
[1766777551634,0.44943891,87474.0,87463.0,0.03076207]
[1766777551841,0.44943891,87473.0,87463.0,0.03076207]
[1766777552049,0.44943891,87473.0,87461.0,0.00035819]
[1766777552289,0.01144,87476.0,87473.0,0.000549]
[1766777552455,0.01144,87476.0,87470.0,0.11887752]
[1766777552662,9e-06,87482.0,87470.0,0.11887752]
[1766777552663,0.01144,87481.0,87470.0,0.11887752]
[1766777552803,0.01144,87481.0,87476.0,0.00055]
[1766777553012,0.01144,87481.0,87470.0,0.11887752]
[1766777553532,0.01144,87481.0,87470.0,0.56831643]
[1766777553720,0.010891,87481.0,87470.0,0.11887752]
[1766777554322,0.44943891,87480.0,87470.0,0.11887752]
[1766777558339,0.44943891,87480.0,87470.0,0.12002065]
[1766777559072,0.44943891,87480.0,87470.0,0.11887752]
[1766777560505,0.44943891,87480.0,87475.0,0.01143183]
[1766777560726,9e-06,87482.0,87479.0,0.01143131]
[1766777560924,9e-06,87482.0,87480.0,0.05715534]
[1766777561127,9e-06,87482.0,87479.0,0.06858746]
[1766777561630,9e-06,87482.0,87479.0,0.01143131]
[1766777562129,9e-06,87482.0,87477.0,0.09935254]
[1766777562516,9e-06,87482.0,87478.0,0.01143144]
[1766777562755,9e-06,87482.0,87479.0,0.01143131]
[1766777562952,9e-06,87482.0,87478.0,0.04219489]
[1766777563168,9e-06,87482.0,87479.0,0.01143131]
[1766777563328,9e-06,87482.0,87480.0,0.00114299]
[1766777563513,9e-06,87482.0,87480.0,0.05715553]
[1766777563935,9e-06,87482.0,87480.0,0.08791898]
[1766777564337,9e-06,87482.0,87480.0,0.05715553]
[1766777566212,9e-06,87482.0,87479.0,0.06858727]
[1766777566575,9e-06,87482.0,87478.0,0.03076345]
[1766777566808,9e-06,87482.0,87478.0,0.09935177]
[1766777567116,9e-06,87482.0,87479.0,0.01143131]
[1766777571392,9e-06,87482.0,87478.0,0.01143144]
[1766777571996,9e-06,87482.0,87479.0,0.01143131]
[1766777572401,9e-06,87482.0,87478.0,0.01143144]
[1766777572585,9e-06,87482.0,87479.0,0.01143131]
[1766777575300,9e-06,87482.0,87477.0,0.08792118]
[1766777575301,0.000549,87479.0,87478.0,0.01143144]
[1766777575501,0.000549,87479.0,87477.0,0.03076345]
[1766777575702,0.44904745,87490.0,87476.0,0.03076345]
[1766777575927,0.44943891,87486.0,87476.0,0.03076345]
[1766777576323,0.44943891,87486.0,87477.0,0.01144]
[1766777577277,0.44943891,87486.0,87478.0,0.01144]
[1766777577442,0.44943891,87488.0,87478.0,0.01144]
[1766777580748,0.44943891,87488.0,87484.0,0.11887752]
[1766777580927,0.44943891,87494.0,87484.0,0.11887752]
[1766777581926,0.0002,87503.0,87485.0,0.02287053]
[1766777582173,0.44943891,87500.0,87494.0,0.000549]
[1766777582346,0.0002,87503.0,87494.0,0.000549]
[1766777582529,0.0002,87503.0,87487.0,0.01143026]
[1766777582930,0.44943891,87497.0,87487.0,0.01143026]
[1766777583129,0.44943891,87497.0,87486.0,0.057152]
[1766777583428,0.00010747,87497.0,87486.0,0.0114304]
[1766777583662,0.44943891,87496.0,87485.0,0.01144]
[1766777584332,0.4966992,87496.0,87485.0,0.01144]
[1766777585466,0.44943891,87496.0,87485.0,0.01144]
[1766777590127,0.44931248,87495.0,87485.0,0.01144]
[1766777590351,0.44931248,87495.0,87485.0,0.04216577]
[1766777591517,0.00010747,87497.0,87495.0,0.000549]
[1766777591722,0.00010747,87497.0,87488.0,0.01143013]
[1766777591723,0.00010747,87497.0,87488.0,0.0685808]
[1766777592342,0.00010747,87497.0,87488.0,0.10478489]
[1766777592689,0.00010747,87497.0,87490.0,0.01142987]
[1766777592892,0.00010747,87497.0,87491.0,0.01142974]
[1766777593096,4.7e-07,87497.0,87492.0,0.01142961]
[1766777593498,4.7e-07,87497.0,87488.0,0.06692986]
[1766777594268,4.7e-07,87497.0,87488.0,0.07835999]
[1766777594934,4.7e-07,87497.0,87488.0,0.07178999]
[1766777595117,4.7e-07,87497.0,87488.0,0.06858044]
[1766777595325,4.7e-07,87497.0,87489.0,0.01143]
[1766777595734,4.7e-07,87497.0,87490.0,0.01142987]
[1766777596366,4.7e-07,87497.0,87491.0,0.01142974]
[1766777596670,4.7e-07,87497.0,87491.0,0.06857813]
[1766777596833,4.7e-07,87497.0,87493.0,0.01142948]
[1766777597026,4.7e-07,87497.0,87492.0,0.01142961]
[1766777597226,4.7e-07,87497.0,87493.0,0.01142948]
[1766777597436,4.7e-07,87497.0,87491.0,0.06857813]
[1766777597774,4.7e-07,87497.0,87492.0,0.01142961]
[1766777597973,4.7e-07,87497.0,87493.0,0.01142948]
[1766777598633,4.7e-07,87497.0,87494.0,0.01144]
[1766777602355,4.7e-07,87497.0,87494.0,0.00744]
[1766777607553,4.7e-07,87497.0,87494.0,0.007333]
[1766777607733,4.7e-07,87497.0,87485.0,0.01143053]
[1766777607934,4.7e-07,87497.0,87489.0,0.01144]
[1766777608544,0.04495129,87496.0,87489.0,0.01144]
[1766777609491,0.04495129,87496.0,87488.0,0.0345959]
[1766777609755,4.7e-07,87497.0,87489.0,0.01143]
[1766777609963,4.7e-07,87497.0,87488.0,0.0345959]